lending/lending_fUSD_20240207
["ID","MTS","AMOUNT","RATE_DAILY","PERIOD"]
[313396950,1707292238107,-445.94319877,0.00030778,4]
[313396951,1707292238219,-267.76595504,0.00030778,4]
[313396952,1707292238230,-18941.4174962,0.00032406,7]
[313396953,1707292238242,-9755.06011632,0.00032406,7]
[313396954,1707292238251,-5641.07886171,0.00032406,2]
[313396955,1707292238261,-2575.53112327,0.000325,2]
[313396956,1707292238271,-2101.47073327,0.000325,2]
[313396957,1707292238284,-423.356324,0.000325,2]
[313396958,1707292238297,-609.47680672,0.000325,2]
[313396959,1707292238316,-15659.95273304,0.000325,2]
[313396960,1707292238334,-28493.87280297,0.000325,2]
[313396961,1707292238344,-252.1938,0.000325,2]
[313396962,1707292238354,-1412.1497,0.000325,2]
[313396963,1707292238364,-177.04,0.00032502,2]
[313396964,1707292238374,-248.12733805,0.00032598,2]
[313396965,1707292238384,-328.8002,0.000326,2]
[313396966,1707292238393,-20279.93510795,0.000326,2]
[313396967,1707292238405,-6697.8236926,0.000326,2]
[313396968,1707292238417,-4599.27940074,0.000326,2]
[313396969,1707292238449,-7928.93018408,0.000326,2]
[313396970,1707292238462,-352.69571463,0.000326,2]
[313396971,1707292238471,-296.621,0.000326,2]
[313396972,1707292238481,-19127.00920242,0.000326,2]
[313396973,1707292238497,-613.71908962,0.000326,2]
[313396984,1707292240733,-729.30813885,0.000326,2]
[313396985,1707292240746,-2370.0,0.000326,2]
[313396986,1707292240761,-865.44923091,0.000326,2]
[313396987,1707292240774,-428.1062567,0.000326,2]
[313396988,1707292240787,-2925.98626232,0.000326,2]
[313396989,1707292240799,-601.19317598,0.000326,2]
[313396990,1707292240813,-544.13000421,0.000326,2]
[313396991,1707292240852,-2259.80024943,0.000326,2]
[313396994,1707292243044,-13468.81371338,0.000326,2]
[313397002,1707292243158,-8876.06247618,0.000326,2]
[313397003,1707292243168,-58.99328772,0.000326,2]
[313397004,1707292243182,-941.00671228,0.000326,2]
[313397005,1707292243191,-219.05203515,0.00032665,2]
[313397006,1707292243202,-1220.44504175,0.00032698,4]
[313397007,1707292243271,-3283.92375449,0.00032698,4]
[313397008,1707292243281,-155.0,0.00032698,4]
[313397009,1707292243291,-248.79472397,0.00032698,4]
[313397010,1707292243300,-156.34847401,0.00032698,2]
[313397011,1707292243309,-283.04018462,0.00032698,2]
[313397012,1707292243319,-3044.52846885,0.00032698,2]
[313397013,1707292243940,-4313.61136283,0.00032698,2]
[313397014,1707292244618,-6707.85302738,0.00032698,2]
[313397015,1707292244627,-379.32242648,0.00032699,4]
[313397016,1707292244638,-447.5188044,0.00032699,2]
[313397017,1707292244648,-160.86732891,0.000327,2]
[313397018,1707292244657,-1403.98281827,0.000327,14]
[313397019,1707292244670,-4496.93779127,0.000327,14]
[313397020,1707292244681,-164.72211674,0.000327,2]
[313397021,1707292244691,-1175.91209764,0.00032742,2]
[313397022,1707292244701,-154.4612657,0.0003278,2]
[313397023,1707292244711,-166.6536147,0.0003278,6]
[313397024,1707292244721,-7675.82022304,0.0003278,21]
[313397025,1707292244730,-4544.47843422,0.0003278,2]
[313397027,1707292244739,-200.0,0.0003279,2]
[313397028,1707292244749,-189.40059502,0.0003279,2]
[313397029,1707292244761,-155.96108198,0.00032799,2]
[313397030,1707292244773,-533.0,0.000328,5]
[313397031,1707292244782,-158.0,0.000328,2]
[313397032,1707292244791,-177905.15124664,0.000328,3]
[313397045,1707292448343,500.0,0.0002,2]
[313397046,1707292994442,-6533.34180032,0.000229,2]
[313397047,1707293349306,-531.20352733,0.00022899,2]
[313397048,1707293349326,-3188.46468667,0.000229,2]
[313397060,1707293432470,-2359.25405021,0.00022899,2]
[313397061,1707293432480,-173.10915059,0.000229,2]
[313397062,1707293432496,-1000.0,0.000229,2]
[313397063,1707293432561,-2758.42616274,0.000229,2]
[313397064,1707293432570,-656.85052645,0.000229,4]
[313397065,1707293432580,-203.32575451,0.000287,2]
[313397066,1707293432589,-6734.13430008,0.00028756,2]
[313397087,1707293438363,-729.20431587,0.00028756,2]
[313397088,1707293438374,-741.27723955,0.00028756,2]
[313397089,1707293438386,-420.8888349,0.00028756,2]
[313397090,1707293438398,-313.89851893,0.00028756,2]
[313397091,1707293438409,-623.25743335,0.00028756,2]
[313397092,1707293438540,-363.30336919,0.00028756,2]
[313397216,1707293440823,-1383.42159617,0.00028756,2]
[313397217,1707293441057,-2250.65819518,0.00028756,2]
[313397218,1707293441936,-916.15620258,0.00028756,2]
[313397219,1707293441947,-285.39,0.00028996,2]
[313397220,1707293441955,-422.92929351,0.00029,15]
[313397221,1707293441966,-155.0,0.00030542,2]
[313397222,1707293441976,-412.3,0.00030543,2]
[313397223,1707293441987,-712.0,0.00030639,2]
[313397224,1707293441998,-180.33,0.0003066,2]
[313397225,1707293442008,-1299.86611891,0.00030779,5]
[313397226,1707293442018,-670.69194535,0.00030779,5]
[313397227,1707293442028,-335.34597268,0.00030779,5]
[313397228,1707293442039,-193.97741993,0.00030779,5]
[313397229,1707293442049,-1000.0,0.00030779,7]
[313397230,1707293442059,-210.595403,0.00030779,5]
[313397231,1707293442069,-183.98214719,0.00030779,6]
[313397232,1707293442080,-266.22666103,0.00030779,6]
[313397233,1707293442090,-154.46,0.000308,2]
[313397234,1707293442100,-209.0,0.0003083,2]
[313397235,1707293442111,-250.0,0.00030914,2]
[313397236,1707293442122,-169.93,0.00030969,2]
[313397237,1707293442132,-155.71,0.00031137,2]
[313397238,1707293442143,-234.34768806,0.00031147,2]
[313397239,1707293442153,-150.0,0.00031176,2]
[313397240,1707293442164,-285.39,0.0003126,2]
[313397241,1707293442174,-288.0,0.00031291,2]
[313397242,1707293442184,-153.35205804,0.000318,2]
[313397243,1707293442195,-412.3,0.00032187,2]
[313397244,1707293442206,-8320.0,0.00032472,2]
[313397245,1707293442216,-4009.00235673,0.0003248,2]
[313397246,1707293442225,-2173.9682,0.00032498,2]
[313397247,1707293442235,-5328.0669,0.000325,2]
[313397248,1707293442245,-176.67995718,0.00032515,13]
[313397249,1707293442254,-200.0,0.00032577,2]
[313397250,1707293442263,-186.98183063,0.00032596,4]
[313397251,1707293442274,-793.40750136,0.00032597,4]
[313397252,1707293442285,-118934.5618873,0.00032598,2]
[313397253,1707293442316,-665.6269376,0.00032498,2]
[313397254,1707293442329,-277.24778743,0.00032498,2]
[313397259,1707293443264,-3915.39565918,0.00032498,2]
[313397260,1707293443552,-27794.14751579,0.00032498,2]
[313397261,1707293443560,-31834.92661124,0.00032598,2]
[313397267,1707293446358,-4710.56523651,0.00032598,2]
[313397268,1707293446416,-263.04335995,0.00032598,2]
[313397269,1707293446526,-1412.81988167,0.00032598,2]
[313397270,1707293446540,-2786.4519071,0.00032598,2]
[313397271,1707293446553,-465.17133714,0.00032598,2]
[313397279,1707294103873,697.0,0.00022,2]
[313397280,1707294103896,157.23684242,0.00022,2]
[313397281,1707294347943,697.0,0.000225,3]
[313397282,1707294347967,303.0,0.000225,3]
[313397283,1707294435118,-155.0,0.00024999,2]
[313397284,1707294435139,-350.0,0.00025,3]
[313397285,1707294435158,-400.0,0.00027,3]
[313397286,1707294435179,-290.29,0.00028455,2]
[313397287,1707294435198,-450.0,0.00029,3]
[313397288,1707294435217,-155.0,0.0003,2]
[313397289,1707294435236,-150.0,0.00030327,2]
[313397290,1707294435255,-178.84,0.00030332,2]
[313397291,1707294435275,-569.6,0.00030456,2]
[313397292,1707294435294,-1051.4,0.00030472,2]
[313397293,1707294435314,-250.0,0.0003052,2]
[313397294,1707294435333,-169.93,0.00030579,2]
[313397295,1707294435352,-192.12989157,0.00030678,2]
[313397296,1707294435372,-156.8472331,0.00030679,2]
[313397297,1707294435392,-290.29,0.00030719,2]
[313397298,1707294435411,-155.71,0.00030769,2]
[313397299,1707294435431,-601.38950269,0.00030778,2]
[313397300,1707294587484,174.204573,0.00030468,2]
[313397301,1707294615493,500.0,0.00030468,2]
[313397302,1707294617736,1862.76222161,0.00030468,2]
[313397311,1707294631445,-109.5017637,0.00030468,2]
[313397312,1707294631455,-500.0,0.00030468,2]
[313397313,1707294631464,-500.0,0.00030468,2]
[313397314,1707294631473,-10.82316007,0.00030622,4]
[313397315,1707294631485,-144.17683993,0.00030622,4]
[313397316,1707294631494,-105.82316007,0.00030622,2]
[313397317,1707294631511,-49.17683993,0.00030622,2]
[313397318,1707294631520,-290.0,0.00030777,2]
[313397319,1707294631529,-692.87998958,0.00030778,2]
[313397320,1707294631559,-24336.39093089,0.00030778,2]
[313397321,1707294631569,-2718.06329684,0.00030779,6]
[313397322,1707294631578,-282.51713225,0.00030779,5]
[313397323,1707294631587,-282.51713224,0.00030779,5]
[313397324,1707294631597,-196.50095358,0.00030779,6]
[313397325,1707294631607,-1000.0,0.00030779,7]
[313397326,1707294631616,-193.97741993,0.00030779,6]
[313397327,1707294631625,-324.95289626,0.00030779,6]
[313397328,1707294631635,-195.87742923,0.00030779,6]
[313397329,1707294631644,-208.0,0.00030998,2]
[313397330,1707294631653,-500.0,0.00031,3]
[313397331,1707294631663,-250.0,0.00031085,2]
[313397332,1707294631672,-155.42,0.00031108,2]
[313397333,1707294631682,-158.0,0.00031281,2]
[313397334,1707294631691,-166.87,0.00031378,2]
[313397335,1707294631700,-432.71,0.00031419,2]
[313397336,1707294631709,-430.4,0.00031665,2]
[313397337,1707294631718,-238.44677226,0.000318,3]
[313397338,1707294631727,-5000.0,0.0003188,2]
[313397339,1707294631737,-1512.9146,0.0003188,2]
[313397340,1707294631746,-210.0,0.0003188,2]
[313397341,1707294631755,-2000.0,0.0003188,4]
[313397342,1707294631764,-164.72211673,0.00031898,2]
[313397343,1707294631773,-156.8472331,0.00031901,2]
[313397344,1707294631782,-1848.11861683,0.00031901,3]
[313397345,1707294631791,-84513.7218856,0.0003197,3]
[313397346,1707294631800,-189.40059502,0.0003197,2]
[313397347,1707294631809,-247.81936172,0.00031979,7]
[313397348,1707294631818,-168.93233475,0.00031979,7]
[313397349,1707294631827,-150.0,0.00031979,2]
[313397350,1707294631836,-150.0,0.00031979,2]
[313397351,1707294631845,-150.0,0.00031979,2]
[313397352,1707294631854,-276.99034687,0.00031979,2]
[313397353,1707294631863,-150.0,0.00031979,2]
[313397354,1707294631873,-364610.08007584,0.0003198,2]
[313397355,1707294631892,-27847.0306,0.0003198,2]
[313397356,1707294631904,-37626.39627124,0.0003198,2]
[313397357,1707294631915,-581.32406444,0.0003198,2]
[313397358,1707294631927,-7063.62211604,0.0003198,2]
[313397359,1707294631941,-4448.62138191,0.0003198,2]
[313397360,1707294631956,-828.32163165,0.0003198,2]
[313397364,1707294637760,-963.71956029,0.00030468,2]
[313397365,1707294637785,-2168.59632929,0.00030468,2]
[313397429,1707294640210,-1278.2723469,0.00030468,2]
[313397430,1707294641017,-1230.49062523,0.00030468,2]
[313397431,1707294641028,-107670.31508102,0.0003198,2]
[313397432,1707294641073,-429.54648797,0.0003198,2]
[313397437,1707294642568,-166.65361471,0.0003197,5]
[313397438,1707294642577,-111425.03391679,0.0003198,2]
[313397439,1707294642622,-2287.58715998,0.0003198,2]
[313397440,1707294642679,-32393.33612581,0.0003198,2]
[313397441,1707294642735,-4554.52808628,0.0003198,2]
[313397447,1707294645551,-319.61407447,0.0003198,2]
[313397448,1707294645606,-657.9988095,0.0003198,2]
[313397449,1707294645663,-278.24112876,0.0003198,2]
[313397450,1707294645734,-250.25,0.0003198,2]
[313397451,1707294645777,-411.06267295,0.0003198,2]
[313397452,1707294645789,-2379.54643416,0.0003198,2]
[313397453,1707294645801,-1033.40313034,0.0003198,2]
[313397454,1707294645832,-601.12824217,0.0003198,2]
[313397461,1707295750120,-358.1604708,0.00024993,2]
[313397462,1707295750143,-155.0,0.00024994,2]
[313397463,1707295750165,-350.0,0.00025,3]
[313397464,1707295750186,-400.0,0.00027,3]
[313397465,1707295750206,-153.07078687,0.000276,2]
[313397466,1707295750392,-725.82,0.000277,2]
[313397467,1707295750419,-1747.0,0.000277,2]
[313397468,1707295750438,-726.73,0.000277,2]
[313397469,1707295750458,-4760.0,0.000277,2]
[313397470,1707295750478,-293.08,0.00028209,2]
[313397471,1707295750497,-450.0,0.00029,3]
[313397472,1707295750517,-153.07078687,0.0002974,2]
[313397473,1707295750535,-250.0,0.00029999,2]
[313397474,1707295750555,-155.0,0.00030136,2]
[313397475,1707295750573,-403.59,0.00030137,7]
[313397476,1707295750592,-478.88,0.00030144,2]
[313397477,1707295750610,-169.93,0.00030147,2]
[313397478,1707295750631,-122.17350931,0.00030153,2]
[313397480,1707295831758,-970.74322231,0.0002888,2]
[313397481,1707295831771,-508.47962113,0.0002888,2]
[313397482,1707295831786,-399.90157605,0.0002888,2]
[313397483,1707295831798,-409.96149532,0.0002888,2]
[313397484,1707295831810,-804.42570392,0.0002888,2]
[313397485,1707295831823,-436.20582315,0.0002888,2]
[313397486,1707295831847,-3311.04755706,0.0002888,2]
[313397487,1707295831893,-1723.97808,0.0002888,2]
[313397488,1707295831950,-616.35924009,0.0002888,2]
[313397489,1707295831963,-894.97462704,0.0002888,2]
[313397505,1707295837711,-8290.80868052,0.0002888,2]
[313397506,1707295837724,-1149.53041513,0.0002888,2]
[313397507,1707295837735,-10426.38271688,0.0002888,2]
[313397508,1707295837877,-868.91697589,0.0002888,2]
[313397509,1707295837933,-1295.13322121,0.0002888,2]
[313397521,1707295840302,-1707.19950581,0.0002888,2]
[313397522,1707295840313,-1457.94416022,0.0002888,2]
[313397523,1707295840361,-933.7548415,0.0002888,2]
[313397524,1707295840374,-397.52,0.0002888,2]
[313397525,1707295840481,-530.1852,0.0002888,2]
[313397526,1707295840493,-1748.42311518,0.0002888,2]
[313397584,1707295842684,-3418.98708617,0.0002888,2]
[313397586,1707295842859,-652.20937819,0.0002888,2]
[313397587,1707295842872,-5049.71972572,0.0002888,2]
[313397588,1707295842917,-614.29174979,0.0002888,2]
[313397589,1707295845911,-408.80782547,0.00028879,2]
[313397590,1707295845920,-2185.11854495,0.0002888,2]
[313397591,1707295845932,-33424.9088541,0.0002888,2]
[313397592,1707295845943,-16889.09711827,0.0002888,2]
[313397593,1707295845970,-2719.75466467,0.0002888,2]
[313397594,1707295845981,-14321.04217918,0.0002888,2]
[313397597,1707296140130,83528.68686,0.00027,30]
[313397598,1707296864874,151.15,0.00022601,2]
[313397599,1707296935126,3171.75677598,0.00022601,7]
[313397600,1707296947114,1105.05783636,0.00022601,7]
[313397601,1707296947143,-155.0,0.00024952,2]
[313397602,1707296947164,-155.0,0.00024953,2]
[313397603,1707296947186,-334.91,0.00025629,2]
[313397604,1707296947207,-153.07078687,0.000269,2]
[313397605,1707296947228,-19076.53440066,0.00026999,2]
[313397606,1707296947248,-669.87,0.00027341,2]
[313397607,1707296947268,-370.25262,0.00027397,7]
[313397608,1707296947290,-150.0,0.000274,2]
[313397609,1707296947309,-160.21,0.00027611,2]
[313397610,1707296947328,-169.93,0.00027686,2]
[313397611,1707296947349,-1000.0,0.00027686,2]
[313397612,1707296947367,-499.99,0.00027686,2]
[313397613,1707296947387,-250.0,0.00027732,2]
[313397614,1707296947407,-500.0,0.00027761,2]
[313397615,1707296947427,-1877.83,0.00027818,2]
[313397616,1707296947448,-258.11,0.0002788,7]
[313397617,1707296947468,-334.91,0.00027893,2]
[313397618,1707296947488,-158.43,0.00027976,2]
[313397619,1707296947509,-258.11,0.00028017,7]
[313397620,1707296947529,-258.11,0.00028154,7]
[313397621,1707296947553,-166.39,0.00028199,2]
[313397622,1707296947573,-258.11,0.00028291,7]
[313397623,1707296947593,-443.05,0.00028417,2]
[313397624,1707296947612,-485.14,0.00028428,7]
[313397625,1707296947632,-549.44937568,0.000287,2]
[313397626,1707296947653,-678.91772174,0.00028838,2]
[313397627,1707296947676,-693.56131897,0.00028841,2]
[313397628,1707296947698,-24454.69982868,0.00028876,2]
[313397643,1707297037860,-523.5973687,0.00024948,2]
[313397644,1707297037868,-178.57234803,0.00024949,2]
[313397645,1707297037877,-78.37991841,0.00028785,2]
[313397646,1707297037889,-267.49309154,0.00028785,2]
[313397647,1707297037900,-3076.74151483,0.00028785,2]
[313397648,1707297037909,-61656.87387134,0.00028876,2]
[313397649,1707297037917,-356.17340624,0.00028878,2]
[313397650,1707297037926,-455.38095618,0.00028878,2]
[313397651,1707297037934,-229.80375247,0.00028878,2]
[313397652,1707297037943,-231.8061173,0.00028878,2]
[313397653,1707297037952,-420.00309923,0.00028879,2]
[313397654,1707297037961,-221.81139316,0.00028879,15]
[313397655,1707297037970,-4709.78111964,0.00028879,2]
[313397656,1707297037980,-150.0,0.00028879,2]
[313397657,1707297037989,-150.0,0.00028879,2]
[313397658,1707297037998,-126788.48614949,0.0002888,2]
[313397659,1707297038009,-2125.0,0.0002888,2]
[313397660,1707297038019,-4251.41490306,0.0002888,2]
[313397661,1707297038034,-1267640.21611824,0.0002888,2]
[313397662,1707297038189,-363.25872601,0.0002888,2]
[313397663,1707297038201,-17196.23587942,0.0002888,2]
[313397677,1707297040463,-912.72943087,0.0002888,2]
[313397678,1707297040518,-764.70284552,0.0002888,2]
[313397679,1707297041259,-552.9,0.0002888,2]
[313397693,1707297042922,-621331.8984096,0.0002888,2]
[313397694,1707297043031,-932.36280918,0.0002888,2]
[313397703,1707297834372,265.699795,0.000219,2]
[313397704,1707298159113,-282.57210237,0.0002497,2]
[313397705,1707298159140,-517.2717875,0.00024971,2]
[313397706,1707298159165,-358.1604708,0.00024971,2]
[313397707,1707298159186,-350.0,0.00025,3]
[313397708,1707298159211,-208.0,0.00025141,2]
[313397709,1707298159234,-333.41,0.00025672,2]
[313397710,1707298159255,-400.0,0.00027,3]
[313397711,1707298159277,-200.0,0.00027316,2]
[313397712,1707298159298,-174.04,0.00027349,2]
[313397713,1707298159320,-500.0,0.00027349,2]
[313397714,1707298159341,-663.43,0.00027374,2]
[313397715,1707298159367,-200.0,0.00027387,2]
[313397716,1707298159388,-218.62,0.00027391,2]
[313397717,1707298159408,-200.0,0.00027415,2]
[313397718,1707298159428,-250.0,0.00027441,2]
[313397719,1707298159450,-762.95,0.00027491,2]
[313397720,1707298159471,-198.09,0.00027538,2]
[313397721,1707298159492,-160.21,0.00027629,2]
[313397722,1707298159512,-150.0,0.00027685,2]
[313397723,1707298159533,-800.0,0.00027754,2]
[313397724,1707298159555,-333.41,0.00027936,2]
[313397725,1707298159575,-294.4245,0.00028039,2]
[313397726,1707298159597,-157.98094542,0.00028187,2]
[313397727,1707298159621,-157.98094542,0.0002832,2]
[313397728,1707298159642,-157.98094542,0.00028453,2]
[313397729,1707298159663,-157.98094542,0.00028587,2]
[313397730,1707298159684,-200.0,0.00028648,2]
[313397731,1707298159704,-150.0,0.00028648,2]
[313397732,1707298159725,-200.0,0.00028649,2]
[313397733,1707298159744,-150.0,0.00028659,2]
[313397734,1707298159764,-157.98094542,0.0002872,2]
[313397735,1707298159784,-150.0,0.0002872,2]
[313397736,1707298159804,-2014.51508521,0.000288,2]
[313397737,1707298159823,-973.94782326,0.000288,2]
[313397738,1707298159844,-157.98094542,0.00028853,2]
[313397739,1707298159863,-184.51243623,0.00028878,2]
[313397740,1707298159883,-19053.02700194,0.00028878,2]
[313397741,1707298159902,-227.64125047,0.00028878,2]
[313397742,1707298159921,-294.13245507,0.00028878,2]
[313397743,1707298159940,-4777.64053712,0.00028878,5]
[313397744,1707298159959,-1329.96056125,0.00028879,2]
[313397745,1707298159979,-1345.52626793,0.00028879,2]
[313397746,1707298160006,-1640.60260147,0.00028879,2]
[313397747,1707298160026,-366.37605833,0.00028879,15]
[313397748,1707298160046,-49693.81138853,0.0002888,2]
[313397756,1707298232005,-300.06,0.00028106,2]
[313397757,1707298232014,-177.71909782,0.00028879,2]
[313397758,1707298232027,-294.15590585,0.00028879,2]
[313397759,1707298232036,-359.20517059,0.00028879,2]
[313397760,1707298232045,-372.97971912,0.0002888,2]
[313397761,1707298232062,-17555.94350278,0.0002888,2]
[313397762,1707298232119,-5329.30070242,0.0002888,2]
[313397763,1707298232131,-486.0341874,0.0002888,2]
[313397764,1707298232143,-321.32956176,0.0002888,2]
[313397765,1707298232159,-660.805318,0.0002888,2]
[313397766,1707298232170,-1727.96399541,0.0002888,2]
[313397767,1707298232234,-332.06921319,0.0002888,2]
[313397768,1707298232290,-358.09149618,0.0002888,2]
[313397786,1707298239226,-71553.35048166,0.0002888,2]
[313397787,1707298239238,-392.92178369,0.0002888,2]
[313397788,1707298239284,-679.21665167,0.0002888,2]
[313397789,1707298239347,-311.21120683,0.0002888,2]
[313397790,1707298239434,-83304.0,0.0002888,2]
[313397795,1707298240368,-4298.0178787,0.0002888,2]
[313397796,1707298240380,-347.655,0.0002888,2]
[313397797,1707298240392,-2500.82119386,0.0002888,2]
[313397798,1707298240404,-59564.9948406,0.0002888,2]
[313397799,1707298240419,-9900.332137,0.0002888,2]
[313397800,1707298240431,-10653.32565907,0.0002888,2]
[313397801,1707298240442,-868.71140911,0.0002888,2]
[313397814,1707298240747,-646.66986606,0.0002888,2]
[313397815,1707298240759,-508.13876161,0.0002888,2]
[313397816,1707298241541,-383.60308495,0.0002888,2]
[313397817,1707298241554,-335.3252424,0.0002888,2]
[313397823,1707298243143,-509.62867425,0.0002888,2]
[313397824,1707298243155,-269.90460262,0.0002888,2]
[313397825,1707298245470,-265.36254297,0.00028879,2]
[313397826,1707298245482,-92.63778913,0.00028879,2]
[313397827,1707298245492,-771.35644087,0.0002888,2]
[313397828,1707298245504,-1711.99008,0.0002888,2]
[313397829,1707298245582,-713579.60487624,0.0002888,2]
[313397839,1707298246091,-495.74209716,0.0002888,2]
[313397840,1707298246153,-264.208,0.0002888,2]
[313397841,1707298246210,-936.27031957,0.0002888,2]
[313397842,1707298246221,-16681.41877557,0.0002888,2]
[313397843,1707298246233,-34184.94927178,0.0002888,2]
[313397844,1707298246265,-978.32951094,0.0002888,2]
[313397845,1707298246277,-16886.32259446,0.0002888,2]
[313397846,1707298246290,-19819.19348739,0.0002888,2]
[313397847,1707298246322,-396.68688292,0.0002888,2]
[313397848,1707298246333,-2101.62725549,0.0002888,2]
[313397849,1707298246433,-10563.5346297,0.0002888,2]
[313397850,1707298246445,-2530.64283678,0.0002888,2]
[313397852,1707298760962,-208.0,0.00024141,2]
[313397853,1707298760985,-295.91,0.00027493,2]
[313397854,1707298761007,-1659.0,0.00028,2]
[313397855,1707298761028,-295.68851017,0.0002859,2]
[313397856,1707298761049,-204.13188,0.00028649,2]
[313397857,1707298761071,-169.71520589,0.00028779,2]
[313397858,1707298761097,-182.14220556,0.0002878,4]
[313397859,1707298761117,-150.0,0.00028841,2]
[313397860,1707298761138,-215.12757545,0.0002885,2]
[313397861,1707298761159,-688.83,0.00028851,2]
[313397862,1707298761184,-161.09281929,0.00028875,2]
[313397863,1707298761205,-402.93,0.00028877,2]
[313397864,1707298761227,-999.55722112,0.00028879,2]
[313397865,1707298761248,-1917.87458252,0.0002888,2]
[313397866,1707299254112,-350.0,0.00025,3]
[313397867,1707299254133,-400.0,0.00027,3]
[313397868,1707299254155,-209.0,0.00027264,2]
[313397869,1707299254176,-281.11,0.00027566,2]
[313397870,1707299254197,-4284.0,0.00028,2]
[313397871,1707299254216,-3040.07107448,0.00028264,2]
[313397872,1707299254238,-250.0,0.00028596,2]
[313397873,1707299254258,-182.14220553,0.0002878,4]
[313397874,1707299254278,-1230.56666101,0.00028878,2]
[313397875,1707299254305,-651.925033,0.00028878,2]
[313397876,1707299254325,-156.03086596,0.00028878,2]
[313397877,1707299254346,-323.04356442,0.00028879,2]
[313397878,1707299254365,-155.4860074,0.00028879,2]
[313397879,1707299254385,-50900.91519599,0.0002888,2]
[313397897,1707299432179,-153.07078687,0.0002878,2]
[313397898,1707299432189,-272.0976832,0.00028879,2]
[313397899,1707299432235,-367.62567829,0.00028879,2]
[313397900,1707299432293,-879.37670246,0.00028879,2]
[313397901,1707299432354,-1791.58906288,0.00028879,2]
[313397902,1707299432363,-19578.74240211,0.0002888,2]
[313397934,1707299438220,-1160.56125395,0.00028879,2]
[313397935,1707299438229,-4094.66914605,0.0002888,2]
[313397936,1707299438277,-466.16410362,0.0002888,2]
[313397937,1707299438445,-638.24848553,0.0002888,2]
[313397938,1707299438458,-3947.76144842,0.0002888,2]
[313397939,1707299438504,-626.60335869,0.0002888,2]
[313397950,1707299438726,-2182.64429618,0.0002888,2]
[313397969,1707299438870,-515.96167797,0.0002888,2]
[313397971,1707299438882,-1085.41820824,0.0002888,2]
[313397972,1707299438893,-488.0,0.0002888,2]
[313398040,1707299441157,-46074.27856042,0.0002888,2]
[313398041,1707299441175,-1066.50500004,0.0002888,2]
[313398042,1707299441191,-6949.42541975,0.0002888,2]
[313398043,1707299441247,-1727.28,0.0002888,2]
[313398047,1707299443328,-1933.00123598,0.0002888,2]
[313398048,1707299443379,-1100.76216582,0.0002888,2]
[313398053,1707299446484,-1184.45045087,0.0002888,2]
[313398057,1707299463702,207.0,0.00027264,2]
[313398058,1707299470191,2283.50120036,0.00023,2]
[313398059,1707299651021,174.204573,0.0002254,2]
[313398060,1707300185085,500.0,0.0002236,2]
[313398061,1707300545112,-199.91250198,0.00022769,4]
[313398062,1707300545136,-165.62972923,0.00022769,2]
[313398063,1707300545157,-158.64936973,0.00022896,2]
[313398064,1707300545177,-300.0,0.00022896,2]
[313398065,1707300545197,-2708.40682981,0.00022996,2]
[313398066,1707300545219,-150.0,0.00022996,2]
[313398067,1707300545239,-33309.60535184,0.00022997,2]
[313398068,1707300545259,-1629.60053608,0.00022998,2]
[313398069,1707300545278,-503.21609964,0.00022998,2]
[313398070,1707300545298,-181.62332118,0.00022998,2]
[313398071,1707300545318,-2683.17158104,0.00022999,2]
[313398072,1707300545339,-113142.46467947,0.00023,2]
[313398073,1707300565651,676.53921369,0.00022999,5]
[313398074,1707300631377,-1126.09699632,0.00023,2]
[313398075,1707300631389,-355.83444,0.00023,2]
[313398077,1707300637442,-1624.19106183,0.00023,2]
[313398078,1707300637454,-626.97495301,0.00023,2]
[313398079,1707300637601,-647.33503908,0.00023,2]
[313398080,1707300637708,-13243.90582801,0.00023,2]
[313398081,1707300637723,-3744.31784974,0.00023,2]
[313398082,1707300637820,-54272.19211247,0.00023,2]
[313398083,1707300637832,-731.0,0.00023,2]
[313398084,1707300637847,-5940.78341999,0.00023,2]
[313398186,1707300640030,-741.68743485,0.00023,2]